[Event "Titled Tuesday Blitz January 18 2022"]
[White "Cherniaiev, Tykhon"]
[Black "Koridze, Lile"]
[WhiteFideId "14182360"]
[BlackFideId "13612514"]
[WhiteElo "2289"]
[BlackElo "1978"]
[Result "1-0"]
[Round "11"]
[TimeControl "180+1"]
[Date "2022.01.18"]
[WhiteClock "0:00:03"]
[BlackClock "0:01:12"]

1. Nf3 {[%clk 0:03:00]}  d5 {[%clk 0:02:58]} 2. c4 {[%clk 0:03:01]}  e6 {[%clk 0:02:58]} 3. b3 {[%clk 0:03:01]}  Nf6 {[%clk 0:02:57]} 4. Bb2 {[%clk 0:03:01]}  Be7 {[%clk 0:02:54]} 5. g3 {[%clk 0:03:00]}  O-O {[%clk 0:02:54]} 6. Bg2 {[%clk 0:03:00]}  c5 {[%clk 0:02:55]} 7. cxd5 {[%clk 0:02:57]}  exd5 {[%clk 0:02:54]} 8. d4 {[%clk 0:02:57]}  b6 {[%clk 0:02:53]} 9. O-O {[%clk 0:02:57]}  Bb7 {[%clk 0:02:52]} 10. Nc3 {[%clk 0:02:57]}  Nc6 {[%clk 0:02:52]} 11. Rc1 {[%clk 0:02:57]}  Rc8 {[%clk 0:02:50]} 12. Qd2 {[%clk 0:02:54]}  Ba6 {[%clk 0:02:38]} 13. Rfd1 {[%clk 0:02:49]}  c4 {[%clk 0:02:36]} 14. Ne5 {[%clk 0:02:47]}  Bb4 {[%clk 0:02:33]} 15. a3 {[%clk 0:02:24]}  Bxc3 {[%clk 0:02:25]} 16. Qxc3 {[%clk 0:02:24]}  Na5 {[%clk 0:02:21]} 17. bxc4 {[%clk 0:02:13]}  Nxc4 {[%clk 0:02:21]} 18. Qb4 {[%clk 0:02:06]}  Rc7 {[%clk 0:02:11]} 19. Ba1 {[%clk 0:02:03]}  Qc8 {[%clk 0:02:10]} 20. Qa4 {[%clk 0:01:37]}  Bb7 {[%clk 0:01:54]} 21. Nxc4 {[%clk 0:00:50]}  dxc4 {[%clk 0:01:51]} 22. Bxb7 {[%clk 0:00:49]}  Qxb7 {[%clk 0:01:50]} 23. Rxc4 {[%clk 0:00:47]}  Re7 {[%clk 0:01:50]} 24. Qc2 {[%clk 0:00:41]}  Ne4 {[%clk 0:01:43]} 25. d5 {[%clk 0:00:31]}  Nd6 {[%clk 0:01:37]} 26. Rc6 {[%clk 0:00:29]}  Qd7 {[%clk 0:01:37]} 27. e3 {[%clk 0:00:25]}  f6 {[%clk 0:01:33]} 28. Qe2 {[%clk 0:00:19]}  Ne4 {[%clk 0:01:30]} 29. h4 {[%clk 0:00:09]}  Rd8 {[%clk 0:01:28]} 30. Qf3 {[%clk 0:00:07]}  Nd6 {[%clk 0:01:22]} 31. Rd4 {[%clk 0:00:06]}  Nf7 {[%clk 0:01:20]} 32. Rg4 {[%clk 0:00:04]}  Ne5 {[%clk 0:01:14]} 33. Bxe5 {[%clk 0:00:03]}  Rxe5 {[%clk 0:01:15]} 34. Rxf6 {[%clk 0:00:04]}  Rxd5 {[%clk 0:01:13]} 35. Rff4 {[%clk 0:00:03]}  Kh8 {[%clk 0:01:12]} 36. Rf8+ {[%clk 0:00:03]} 1-0


[Site "https://www.chess.com"]

[Event "Titled Tuesday Blitz January 18 2022"]
[White "Chigaev, Maksim"]
[Black "Sychev, Klementy"]
[WhiteFideId "4108116"]
[BlackFideId "4114060"]
[WhiteElo "2502"]
[BlackElo "2564"]
[Result "1-0"]
[Round "11"]
[TimeControl "180+1"]
[Date "2022.01.18"]
[WhiteClock "0:00:18"]
[BlackClock "0:00:02"]

1. d4 {[%clk 0:03:00]}  Nf6 {[%clk 0:02:58]} 2. c4 {[%clk 0:03:00]}  c5 {[%clk 0:02:58]} 3. d5 {[%clk 0:03:00]}  e5 {[%clk 0:02:58]} 4. Nc3 {[%clk 0:02:54]}  d6 {[%clk 0:02:58]} 5. e4 {[%clk 0:02:51]}  Nbd7 {[%clk 0:02:58]} 6. Nf3 {[%clk 0:02:46]}  g6 {[%clk 0:02:48]} 7. Be2 {[%clk 0:02:40]}  Bg7 {[%clk 0:02:48]} 8. O-O {[%clk 0:02:39]}  O-O {[%clk 0:02:48]} 9. a3 {[%clk 0:02:32]}  h6 {[%clk 0:02:44]} 10. b4 {[%clk 0:02:31]}  Nh7 {[%clk 0:02:41]} 11. Ne1 {[%clk 0:02:31]}  f5 {[%clk 0:02:39]} 12. Nd3 {[%clk 0:02:32]}  b6 {[%clk 0:02:26]} 13. Bd2 {[%clk 0:02:25]}  Nhf6 {[%clk 0:02:09]} 14. f3 {[%clk 0:02:25]}  f4 {[%clk 0:02:09]} 15. Rb1 {[%clk 0:02:09]}  Rf7 {[%clk 0:02:09]} 16. Qa4 {[%clk 0:02:05]}  Nf8 {[%clk 0:01:59]} 17. bxc5 {[%clk 0:02:04]}  dxc5 {[%clk 0:01:13]} 18. Nxe5 {[%clk 0:02:03]}  Nh5 {[%clk 0:01:14]} 19. Nxf7 {[%clk 0:01:51]}  Bd4+ {[%clk 0:01:13]} 20. Rf2 {[%clk 0:01:47]}  Kxf7 {[%clk 0:01:02]} 21. Be1 {[%clk 0:01:33]}  Ng3 {[%clk 0:00:59]} 22. Rd1 {[%clk 0:01:24]}  Be3 {[%clk 0:00:44]} 23. Rd3 {[%clk 0:01:13]}  Nd7 {[%clk 0:00:34]} 24. Rxe3 {[%clk 0:00:49]}  fxe3 {[%clk 0:00:33]} 25. hxg3 {[%clk 0:00:49]}  exf2+ {[%clk 0:00:33]} 26. Bxf2 {[%clk 0:00:50]}  Ne5 {[%clk 0:00:32]} 27. f4 {[%clk 0:00:46]}  Ng4 {[%clk 0:00:25]} 28. Bxg4 {[%clk 0:00:47]}  Bxg4 {[%clk 0:00:25]} 29. e5 {[%clk 0:00:47]}  Kg7 {[%clk 0:00:18]} 30. Ne4 {[%clk 0:00:43]}  g5 {[%clk 0:00:14]} 31. Nf6 {[%clk 0:00:42]}  Bf5 {[%clk 0:00:14]} 32. Qd1 {[%clk 0:00:37]}  Bg6 {[%clk 0:00:12]} 33. Be3 {[%clk 0:00:36]}  Qc8 {[%clk 0:00:11]} 34. g4 {[%clk 0:00:31]}  b5 {[%clk 0:00:09]} 35. f5 {[%clk 0:00:26]}  Bf7 {[%clk 0:00:08]} 36. Ne4 {[%clk 0:00:22]}  bxc4 {[%clk 0:00:07]} 37. e6 {[%clk 0:00:23]}  Be8 {[%clk 0:00:04]} 38. Qa1+ {[%clk 0:00:23]}  Kg8 {[%clk 0:00:02]} 39. Qf6 {[%clk 0:00:19]}  c3 {[%clk 0:00:02]} 40. Qxh6 {[%clk 0:00:18]} 1-0


[Site "https://www.chess.com"]

[Event "Titled Tuesday Blitz January 18 2022"]
[White "Costachi, Mihnea"]
[Black "Aditya Mittal"]
[WhiteFideId "1217518"]
[BlackFideId "35042025"]
[WhiteElo "2464"]
[BlackElo "2287"]
[Result "1-0"]
[Round "11"]
[TimeControl "180+1"]
[Date "2022.01.18"]
[WhiteClock "0:00:06"]
[BlackClock "0:00:03"]

1. e4 {[%clk 0:03:00]}  c5 {[%clk 0:03:00]} 2. Nf3 {[%clk 0:02:58]}  d6 {[%clk 0:03:00]} 3. Bc4 {[%clk 0:02:59]}  Nf6 {[%clk 0:03:00]} 4. d3 {[%clk 0:02:57]}  Nc6 {[%clk 0:02:58]} 5. O-O {[%clk 0:02:57]}  g6 {[%clk 0:02:58]} 6. c3 {[%clk 0:02:52]}  Bg7 {[%clk 0:02:58]} 7. Re1 {[%clk 0:02:52]}  O-O {[%clk 0:02:57]} 8. d4 {[%clk 0:02:52]}  cxd4 {[%clk 0:02:42]} 9. cxd4 {[%clk 0:02:52]}  Bg4 {[%clk 0:02:43]} 10. Nc3 {[%clk 0:02:27]}  Bc8 {[%clk 0:02:26]} 11. h3 {[%clk 0:02:11]}  a6 {[%clk 0:02:02]} 12. e5 {[%clk 0:01:56]}  dxe5 {[%clk 0:01:59]} 13. dxe5 {[%clk 0:01:57]}  Qxd1 {[%clk 0:01:49]} 14. Rxd1 {[%clk 0:01:57]}  Ne8 {[%clk 0:01:16]} 15. Bf4 {[%clk 0:01:45]}  Nc7 {[%clk 0:01:11]} 16. Rac1 {[%clk 0:01:40]}  Be6 {[%clk 0:01:11]} 17. Ne4 {[%clk 0:01:33]}  Rfd8 {[%clk 0:01:06]} 18. Rxd8+ {[%clk 0:01:24]}  Rxd8 {[%clk 0:01:07]} 19. Nc5 {[%clk 0:01:24]}  Bxc4 {[%clk 0:00:57]} 20. Nxb7 {[%clk 0:01:02]}  Nd4 {[%clk 0:00:26]} 21. Rxc4 {[%clk 0:00:47]}  Nxf3+ {[%clk 0:00:26]} 22. gxf3 {[%clk 0:00:48]}  Rd1+ {[%clk 0:00:25]} 23. Kg2 {[%clk 0:00:48]}  Ne6 {[%clk 0:00:15]} 24. Rc8+ {[%clk 0:00:49]}  Bf8 {[%clk 0:00:13]} 25. Bh6 {[%clk 0:00:48]}  f6 {[%clk 0:00:08]} 26. exf6 {[%clk 0:00:32]}  exf6 {[%clk 0:00:09]} 27. Nc5 {[%clk 0:00:21]}  Kf7 {[%clk 0:00:05]} 28. Bxf8 {[%clk 0:00:17]}  Nxf8 {[%clk 0:00:06]} 29. Rc6 {[%clk 0:00:17]}  Rd2 {[%clk 0:00:05]} 30. Rc7+ {[%clk 0:00:12]}  Kg8 {[%clk 0:00:05]} 31. Rb7 {[%clk 0:00:12]}  a5 {[%clk 0:00:05]} 32. a3 {[%clk 0:00:12]}  g5 {[%clk 0:00:05]} 33. b4 {[%clk 0:00:12]}  axb4 {[%clk 0:00:05]} 34. axb4 {[%clk 0:00:13]}  Ng6 {[%clk 0:00:06]} 35. Ne4 {[%clk 0:00:10]}  Nf4+ {[%clk 0:00:02]} 36. Kg3 {[%clk 0:00:11]}  Rd1 {[%clk 0:00:02]} 37. Nxf6+ {[%clk 0:00:11]}  Kf8 {[%clk 0:00:02]} 38. Nxh7+ {[%clk 0:00:10]}  Ke8 {[%clk 0:00:03]} 39. Kg4 {[%clk 0:00:11]}  Rg1+ {[%clk 0:00:03]} 40. Kf5 {[%clk 0:00:11]}  Nxh3 {[%clk 0:00:03]} 41. Nf6+ {[%clk 0:00:11]}  Kd8 {[%clk 0:00:03]} 42. b5 {[%clk 0:00:10]}  Nxf2 {[%clk 0:00:03]} 43. b6 {[%clk 0:00:10]}  Rg3 {[%clk 0:00:03]} 44. Rh7 {[%clk 0:00:05]}  Rxf3+ {[%clk 0:00:03]} 45. Kg6 {[%clk 0:00:05]}  Kc8 {[%clk 0:00:03]} 46. b7+ {[%clk 0:00:04]}  Kb8 {[%clk 0:00:03]} 47. Rf7 {[%clk 0:00:05]}  Rb3 {[%clk 0:00:03]} 48. Nd7+ {[%clk 0:00:05]}  Kxb7 {[%clk 0:00:03]} 49. Nc5+ {[%clk 0:00:06]}  Kc6 {[%clk 0:00:04]} 50. Nxb3 {[%clk 0:00:07]}  Ne4 {[%clk 0:00:03]} 51. Rf5 {[%clk 0:00:06]}  Kd6 {[%clk 0:00:03]} 52. Nd4 {[%clk 0:00:06]}  g4 {[%clk 0:00:03]} 53. Ne2 {[%clk 0:00:05]}  g3 {[%clk 0:00:03]} 54. Rf4 {[%clk 0:00:05]}  g2 {[%clk 0:00:03]} 55. Rxe4 {[%clk 0:00:05]}  g1=Q+ {[%clk 0:00:03]} 56. Nxg1 {[%clk 0:00:05]}  Kd5 {[%clk 0:00:03]} 57. Rg4 {[%clk 0:00:06]} 1-0


[Site "https://www.chess.com"]

[Event "Titled Tuesday Blitz January 18 2022"]
[White "Csonka, Balazs"]
[Black "Zhuravlev, Alexey"]
[WhiteFideId "742910"]
[BlackFideId "4164199"]
[WhiteElo "2404"]
[BlackElo "2541"]
[Result "1-0"]
[Round "11"]
[TimeControl "180+1"]
[Date "2022.01.18"]
[WhiteClock "0:00:03"]
[BlackClock "0:00:02"]

1. e4 {[%clk 0:03:00]}  c6 {[%clk 0:02:58]} 2. Nf3 {[%clk 0:02:59]}  d5 {[%clk 0:02:59]} 3. exd5 {[%clk 0:02:59]}  cxd5 {[%clk 0:02:58]} 4. Ne5 {[%clk 0:03:00]}  a6 {[%clk 0:02:57]} 5. d4 {[%clk 0:02:59]}  Nc6 {[%clk 0:02:56]} 6. c3 {[%clk 0:02:49]}  Bf5 {[%clk 0:02:53]} 7. Bf4 {[%clk 0:02:38]}  e6 {[%clk 0:02:51]} 8. Qb3 {[%clk 0:02:28]}  Nxe5 {[%clk 0:02:31]} 9. Bxe5 {[%clk 0:02:29]}  Qd7 {[%clk 0:02:30]} 10. Nd2 {[%clk 0:02:22]}  Nf6 {[%clk 0:02:30]} 11. Be2 {[%clk 0:02:04]}  Be7 {[%clk 0:02:29]} 12. O-O {[%clk 0:02:03]}  O-O {[%clk 0:02:30]} 13. a4 {[%clk 0:02:03]}  Ne4 {[%clk 0:02:05]} 14. Nxe4 {[%clk 0:01:58]}  Bxe4 {[%clk 0:02:06]} 15. a5 {[%clk 0:01:55]}  Bd6 {[%clk 0:02:03]} 16. Bxd6 {[%clk 0:01:43]}  Qxd6 {[%clk 0:02:03]} 17. Ra4 {[%clk 0:01:37]}  Qc7 {[%clk 0:01:49]} 18. Rfa1 {[%clk 0:01:16]}  e5 {[%clk 0:01:21]} 19. Qd1 {[%clk 0:01:02]}  Rfd8 {[%clk 0:01:12]} 20. Rb4 {[%clk 0:01:00]}  Bf5 {[%clk 0:00:59]} 21. dxe5 {[%clk 0:00:50]}  Qxe5 {[%clk 0:00:53]} 22. Bf3 {[%clk 0:00:36]}  Rd7 {[%clk 0:00:52]} 23. Qd4 {[%clk 0:00:34]}  f6 {[%clk 0:00:49]} 24. Rd1 {[%clk 0:00:25]}  Rad8 {[%clk 0:00:49]} 25. h4 {[%clk 0:00:24]}  Kf7 {[%clk 0:00:37]} 26. Rb6 {[%clk 0:00:22]}  Kg6 {[%clk 0:00:18]} 27. g3 {[%clk 0:00:17]}  Qxd4 {[%clk 0:00:14]} 28. Rxd4 {[%clk 0:00:16]}  h5 {[%clk 0:00:15]} 29. Kf1 {[%clk 0:00:13]}  Be4 {[%clk 0:00:10]} 30. Bxe4+ {[%clk 0:00:12]}  dxe4 {[%clk 0:00:11]} 31. Rxe4 {[%clk 0:00:12]}  Rd1+ {[%clk 0:00:11]} 32. Kg2 {[%clk 0:00:13]}  R8d7 {[%clk 0:00:10]} 33. Reb4 {[%clk 0:00:12]}  R1d5 {[%clk 0:00:07]} 34. Rxb7 {[%clk 0:00:11]}  Rxb7 {[%clk 0:00:08]} 35. Rxb7 {[%clk 0:00:11]}  Rxa5 {[%clk 0:00:09]} 36. b4 {[%clk 0:00:08]}  Ra3 {[%clk 0:00:08]} 37. c4 {[%clk 0:00:08]}  Rb3 {[%clk 0:00:08]} 38. Rb6 {[%clk 0:00:07]}  Rc3 {[%clk 0:00:07]} 39. c5 {[%clk 0:00:05]}  a5 {[%clk 0:00:08]} 40. bxa5 {[%clk 0:00:04]}  Rxc5 {[%clk 0:00:09]} 41. a6 {[%clk 0:00:01]}  Ra5 {[%clk 0:00:09]} 42. Kf3 {[%clk 0:00:02]}  Kf5 {[%clk 0:00:09]} 43. Rb7 {[%clk 0:00:01]}  Ra3+ {[%clk 0:00:08]} 44. Kg2 {[%clk 0:00:01]}  g5 {[%clk 0:00:06]} 45. a7 {[%clk 0:00:01]}  gxh4 {[%clk 0:00:06]} 46. gxh4 {[%clk 0:00:02]}  Kg4 {[%clk 0:00:06]} 47. Rf7 {[%clk 0:00:02]}  Kxh4 {[%clk 0:00:05]} 48. Rxf6 {[%clk 0:00:02]}  Rxa7 {[%clk 0:00:06]} 49. Rg6 {[%clk 0:00:03]}  Ra2 {[%clk 0:00:04]} 50. Rg8 {[%clk 0:00:03]}  Rb2 {[%clk 0:00:04]} 51. Rg7 {[%clk 0:00:03]}  Ra2 {[%clk 0:00:05]} 52. Kf1 {[%clk 0:00:03]}  Kh3 {[%clk 0:00:02]} 53. f4 {[%clk 0:00:03]} 1-0


[Site "https://www.chess.com"]

[Event "Titled Tuesday Blitz January 18 2022"]
[White "Devaev, Alexander"]
[Black "Ivanisevic, Ivan"]
[WhiteFideId "4169395"]
[BlackFideId "912417"]
[WhiteElo "2185"]
[BlackElo "2495"]
[Result "0-1"]
[Round "11"]
[TimeControl "180+1"]
[Date "2022.01.18"]
[WhiteClock "0:00:01"]
[BlackClock "0:01:15"]

1. d4 {[%clk 0:02:58]}  Nf6 {[%clk 0:03:00]} 2. c4 {[%clk 0:02:57]}  c5 {[%clk 0:02:59]} 3. d5 {[%clk 0:02:57]}  g6 {[%clk 0:02:58]} 4. Nc3 {[%clk 0:02:57]}  Bg7 {[%clk 0:02:58]} 5. e4 {[%clk 0:02:57]}  d6 {[%clk 0:02:58]} 6. h3 {[%clk 0:02:57]}  O-O {[%clk 0:02:56]} 7. Nf3 {[%clk 0:02:57]}  a6 {[%clk 0:02:53]} 8. a4 {[%clk 0:02:48]}  b6 {[%clk 0:02:46]} 9. Bg5 {[%clk 0:02:44]}  h6 {[%clk 0:02:41]} 10. Be3 {[%clk 0:02:44]}  e6 {[%clk 0:02:40]} 11. Bd3 {[%clk 0:02:42]}  Re8 {[%clk 0:02:38]} 12. Qd2 {[%clk 0:02:40]}  Kh7 {[%clk 0:02:24]} 13. a5 {[%clk 0:02:23]}  exd5 {[%clk 0:02:17]} 14. exd5 {[%clk 0:02:21]}  b5 {[%clk 0:02:15]} 15. cxb5 {[%clk 0:02:20]}  axb5 {[%clk 0:02:14]} 16. Bxb5 {[%clk 0:02:21]}  Nbd7 {[%clk 0:02:12]} 17. a6 {[%clk 0:02:06]}  Qb6 {[%clk 0:02:10]} 18. O-O {[%clk 0:01:58]}  Bxa6 {[%clk 0:02:09]} 19. Bc6 {[%clk 0:01:32]}  Bb7 {[%clk 0:01:53]} 20. Bf4 {[%clk 0:01:06]}  Bf8 {[%clk 0:01:38]} 21. Na4 {[%clk 0:00:44]}  Qc7 {[%clk 0:01:35]} 22. Rfd1 {[%clk 0:00:20]}  Bxc6 {[%clk 0:01:31]} 23. dxc6 {[%clk 0:00:19]}  Qxc6 {[%clk 0:01:32]} 24. Nc3 {[%clk 0:00:12]}  Rxa1 {[%clk 0:01:30]} 25. Rxa1 {[%clk 0:00:13]}  d5 {[%clk 0:01:31]} 26. Ra7 {[%clk 0:00:06]}  d4 {[%clk 0:01:29]} 27. Nd1 {[%clk 0:00:02]}  Ra8 {[%clk 0:01:22]} 28. Rxa8 {[%clk 0:00:01]}  Qxa8 {[%clk 0:01:22]} 29. b3 {[%clk 0:00:01]}  Nd5 {[%clk 0:01:15]} 0-1


[Site "https://www.chess.com"]

[Event "Titled Tuesday Blitz January 18 2022"]
[White "Doluhanova, Evgeniya"]
[Black "Romanchuk, Viktor"]
[WhiteFideId "14112035"]
[BlackFideId "14109271"]
[WhiteElo "2076"]
[BlackElo "2242"]
[Result "0-1"]
[Round "11"]
[TimeControl "180+1"]
[Date "2022.01.18"]
[WhiteClock "0:00:20"]
[BlackClock "0:00:48"]

1. e4 {[%clk 0:03:00]}  e6 {[%clk 0:02:58]} 2. d4 {[%clk 0:02:59]}  d5 {[%clk 0:02:58]} 3. e5 {[%clk 0:02:58]}  c5 {[%clk 0:02:58]} 4. c3 {[%clk 0:02:59]}  Nc6 {[%clk 0:02:58]} 5. Nf3 {[%clk 0:02:56]}  Bd7 {[%clk 0:02:58]} 6. Be3 {[%clk 0:02:55]}  Qb6 {[%clk 0:02:56]} 7. Nbd2 {[%clk 0:02:30]}  Nh6 {[%clk 0:02:37]} 8. Bd3 {[%clk 0:02:17]}  cxd4 {[%clk 0:02:35]} 9. cxd4 {[%clk 0:02:15]}  Nb4 {[%clk 0:02:34]} 10. Be2 {[%clk 0:01:57]}  Rc8 {[%clk 0:02:27]} 11. O-O {[%clk 0:01:56]}  Nf5 {[%clk 0:02:21]} 12. Rc1 {[%clk 0:01:38]}  Rxc1 {[%clk 0:02:13]} 13. Qxc1 {[%clk 0:01:38]}  Nxa2 {[%clk 0:02:12]} 14. Qa1 {[%clk 0:01:36]}  Nb4 {[%clk 0:02:11]} 15. Rc1 {[%clk 0:01:30]}  Be7 {[%clk 0:02:07]} 16. Nb3 {[%clk 0:01:26]}  O-O {[%clk 0:01:58]} 17. Nc5 {[%clk 0:01:26]}  Bc6 {[%clk 0:01:37]} 18. Bd2 {[%clk 0:01:24]}  Nxd4 {[%clk 0:01:28]} 19. Nxd4 {[%clk 0:01:19]}  Bxc5 {[%clk 0:01:27]} 20. Nb3 {[%clk 0:01:08]}  Bxf2+ {[%clk 0:01:21]} 21. Kh1 {[%clk 0:01:08]}  Be3 {[%clk 0:01:19]} 22. Qa3 {[%clk 0:00:59]}  Bxd2 {[%clk 0:01:08]} 23. Nxd2 {[%clk 0:00:59]}  Bd7 {[%clk 0:01:04]} 24. Nf3 {[%clk 0:00:53]}  Rc8 {[%clk 0:01:02]} 25. Rf1 {[%clk 0:00:49]}  h6 {[%clk 0:01:01]} 26. h3 {[%clk 0:00:43]}  Be8 {[%clk 0:00:58]} 27. Nh4 {[%clk 0:00:29]}  Nc6 {[%clk 0:00:53]} 28. Qg3 {[%clk 0:00:23]}  Qxb2 {[%clk 0:00:50]} 29. Bd3 {[%clk 0:00:20]}  Qxe5 {[%clk 0:00:48]} 0-1


[Site "https://www.chess.com"]

[Event "Titled Tuesday Blitz January 18 2022"]
[White "Donchenko, Alexander"]
[Black "Piesik, Piotr"]
[WhiteFideId "24603295"]
[BlackFideId "1136194"]
[WhiteElo "2539"]
[BlackElo "2232"]
[Result "1-0"]
[Round "11"]
[TimeControl "180+1"]
[Date "2022.01.18"]
[WhiteClock "0:02:22"]
[BlackClock "0:01:46"]

1. e4 {[%clk 0:03:00]}  g6 {[%clk 0:02:59]} 2. d4 {[%clk 0:03:00]}  Bg7 {[%clk 0:03:00]} 3. c4 {[%clk 0:03:01]}  d6 {[%clk 0:03:00]} 4. Nc3 {[%clk 0:03:01]}  Nd7 {[%clk 0:03:00]} 5. Nf3 {[%clk 0:03:01]}  e5 {[%clk 0:03:01]} 6. Be2 {[%clk 0:03:01]}  Ngf6 {[%clk 0:03:01]} 7. O-O {[%clk 0:03:02]}  O-O {[%clk 0:03:01]} 8. Be3 {[%clk 0:03:01]}  Ng4 {[%clk 0:03:01]} 9. Bg5 {[%clk 0:03:02]}  Bf6 {[%clk 0:02:59]} 10. Bxf6 {[%clk 0:03:00]}  Ngxf6 {[%clk 0:02:59]} 11. Qc2 {[%clk 0:03:00]}  Qe7 {[%clk 0:02:57]} 12. Rfe1 {[%clk 0:03:00]}  c6 {[%clk 0:02:55]} 13. Rad1 {[%clk 0:02:59]}  Kg7 {[%clk 0:02:55]} 14. Bf1 {[%clk 0:02:58]}  Re8 {[%clk 0:02:55]} 15. h3 {[%clk 0:02:57]}  Nf8 {[%clk 0:02:53]} 16. c5 {[%clk 0:02:56]}  dxc5 {[%clk 0:02:45]} 17. dxe5 {[%clk 0:02:53]}  N6d7 {[%clk 0:02:45]} 18. Na4 {[%clk 0:02:53]}  Nxe5 {[%clk 0:02:44]} 19. Nxe5 {[%clk 0:02:51]}  Qxe5 {[%clk 0:02:44]} 20. Nxc5 {[%clk 0:02:49]}  Ne6 {[%clk 0:02:37]} 21. Nd7 {[%clk 0:02:39]}  Bxd7 {[%clk 0:02:37]} 22. Rxd7 {[%clk 0:02:38]}  Nc5 {[%clk 0:02:24]} 23. Rd2 {[%clk 0:02:38]}  Rad8 {[%clk 0:02:22]} 24. f4 {[%clk 0:02:31]}  Rxd2 {[%clk 0:02:20]} 25. Qxd2 {[%clk 0:02:32]}  Nxe4 {[%clk 0:02:11]} 26. Qb4 {[%clk 0:02:23]}  Qxf4 {[%clk 0:01:49]} 27. Qd4+ {[%clk 0:02:23]}  Qe5 {[%clk 0:01:46]} 28. Rxe4 {[%clk 0:02:22]} 1-0


[Site "https://www.chess.com"]

[Event "Titled Tuesday Blitz January 18 2022"]
[White "Furtak, Joanna"]
[Black "Gabdushev, Ruslan"]
[WhiteFideId "21804842"]
[BlackFideId "4137833"]
[WhiteElo "1729"]
[BlackElo "2312"]
[Result "0-1"]
[Round "11"]
[TimeControl "180+1"]
[Date "2022.01.18"]
[WhiteClock "0:00:06"]
[BlackClock "0:00:13"]

1. e4 {[%clk 0:02:57]}  Nc6 {[%clk 0:02:59]} 2. Nc3 {[%clk 0:02:56]}  e6 {[%clk 0:02:59]} 3. d4 {[%clk 0:02:55]}  Bb4 {[%clk 0:02:59]} 4. Ne2 {[%clk 0:02:54]}  d6 {[%clk 0:02:58]} 5. a3 {[%clk 0:02:54]}  Ba5 {[%clk 0:02:58]} 6. g3 {[%clk 0:02:53]}  Nge7 {[%clk 0:02:49]} 7. Bg2 {[%clk 0:02:49]}  O-O {[%clk 0:02:47]} 8. O-O {[%clk 0:02:48]}  f5 {[%clk 0:02:35]} 9. Be3 {[%clk 0:02:23]}  Bb6 {[%clk 0:02:28]} 10. exf5 {[%clk 0:02:17]}  Nxf5 {[%clk 0:02:26]} 11. Na4 {[%clk 0:02:17]}  Nxe3 {[%clk 0:02:16]} 12. fxe3 {[%clk 0:02:18]}  Rxf1+ {[%clk 0:02:14]} 13. Qxf1 {[%clk 0:02:16]}  Bd7 {[%clk 0:02:12]} 14. Nxb6 {[%clk 0:02:13]}  axb6 {[%clk 0:02:12]} 15. Nf4 {[%clk 0:02:13]}  Qg5 {[%clk 0:02:04]} 16. Qc4 {[%clk 0:01:39]}  Re8 {[%clk 0:01:35]} 17. Rf1 {[%clk 0:01:11]}  h5 {[%clk 0:01:28]} 18. d5 {[%clk 0:00:17]}  Ne5 {[%clk 0:01:20]} 19. Qb3 {[%clk 0:00:15]}  exd5 {[%clk 0:01:05]} 20. Bxd5+ {[%clk 0:00:15]}  Kh7 {[%clk 0:01:01]} 21. Be6 {[%clk 0:00:12]}  Bc6 {[%clk 0:00:40]} 22. Bd5 {[%clk 0:00:11]}  h4 {[%clk 0:00:38]} 23. Bxc6 {[%clk 0:00:10]}  bxc6 {[%clk 0:00:36]} 24. Ne6 {[%clk 0:00:08]}  Rxe6 {[%clk 0:00:17]} 25. Qxe6 {[%clk 0:00:08]}  Qxe3+ {[%clk 0:00:17]} 26. Kh1 {[%clk 0:00:07]}  Qe4+ {[%clk 0:00:17]} 27. Kg1 {[%clk 0:00:04]}  Nf3+ {[%clk 0:00:16]} 28. Rxf3 {[%clk 0:00:03]}  Qxe6 {[%clk 0:00:17]} 29. Kg2 {[%clk 0:00:04]}  h3+ {[%clk 0:00:15]} 30. Kf2 {[%clk 0:00:04]}  Qe4 {[%clk 0:00:14]} 31. c3 {[%clk 0:00:03]}  Qc2+ {[%clk 0:00:14]} 32. Ke3 {[%clk 0:00:03]}  Qxh2 {[%clk 0:00:14]} 33. Rf4 {[%clk 0:00:03]}  Qxg3+ {[%clk 0:00:14]} 34. Ke4 {[%clk 0:00:04]}  h2 {[%clk 0:00:13]} 35. Rf5 {[%clk 0:00:05]}  h1=Q+ {[%clk 0:00:13]} 36. Kd4 {[%clk 0:00:06]}  Qd5+ {[%clk 0:00:13]} 0-1


[Site "https://www.chess.com"]

[Event "Titled Tuesday Blitz January 18 2022"]
[White "Goryachkina, Aleksandra"]
[Black "Kashefi, Amir Hosein"]
[WhiteFideId "4147103"]
[BlackFideId "12557935"]
[WhiteElo "2426"]
[BlackElo "2098"]
[Result "1-0"]
[Round "11"]
[TimeControl "180+1"]
[Date "2022.01.18"]
[WhiteClock "0:00:51"]
[BlackClock "0:00:02"]

1. e4 {[%clk 0:02:59]}  c6 {[%clk 0:02:44]} 2. d4 {[%clk 0:02:59]}  d5 {[%clk 0:02:40]} 3. e5 {[%clk 0:02:58]}  Bf5 {[%clk 0:02:39]} 4. Nd2 {[%clk 0:02:59]}  e6 {[%clk 0:02:38]} 5. Nb3 {[%clk 0:02:58]}  Nd7 {[%clk 0:02:37]} 6. Nf3 {[%clk 0:02:56]}  Ne7 {[%clk 0:02:32]} 7. Be2 {[%clk 0:02:54]}  Bg6 {[%clk 0:02:33]} 8. O-O {[%clk 0:02:53]}  Nf5 {[%clk 0:02:32]} 9. Bd2 {[%clk 0:02:49]}  Be7 {[%clk 0:02:23]} 10. a4 {[%clk 0:02:47]}  a6 {[%clk 0:02:23]} 11. a5 {[%clk 0:02:43]}  c5 {[%clk 0:02:15]} 12. c4 {[%clk 0:02:25]}  dxc4 {[%clk 0:01:50]} 13. Bxc4 {[%clk 0:02:10]}  Nxd4 {[%clk 0:01:49]} 14. Nbxd4 {[%clk 0:01:57]}  cxd4 {[%clk 0:01:50]} 15. Bf4 {[%clk 0:01:55]}  O-O {[%clk 0:01:20]} 16. Qxd4 {[%clk 0:01:46]}  Nc5 {[%clk 0:01:16]} 17. Rfd1 {[%clk 0:01:43]}  Qxd4 {[%clk 0:01:15]} 18. Nxd4 {[%clk 0:01:42]}  Rfd8 {[%clk 0:01:09]} 19. Be3 {[%clk 0:01:35]}  Rac8 {[%clk 0:01:06]} 20. Rac1 {[%clk 0:01:34]}  Nd7 {[%clk 0:00:46]} 21. f4 {[%clk 0:01:28]}  Bb4 {[%clk 0:00:45]} 22. Nb3 {[%clk 0:01:26]}  Nb8 {[%clk 0:00:37]} 23. Rxd8+ {[%clk 0:01:14]}  Rxd8 {[%clk 0:00:37]} 24. Be2 {[%clk 0:00:58]}  h6 {[%clk 0:00:21]} 25. Bb6 {[%clk 0:00:56]}  Re8 {[%clk 0:00:02]} 26. Bf3 {[%clk 0:00:56]}  Nd7 {[%clk 0:00:03]} 27. Bxb7 {[%clk 0:00:51]}  Nxb6 {[%clk 0:00:02]} 28. axb6 {[%clk 0:00:51]}  Rb8 {[%clk 0:00:02]} 29. Rc8+ {[%clk 0:00:51]} 1-0


[Site "https://www.chess.com"]